bitfinex-derivatives/quotes_ETHF0:USTF0_20210111
["timestamp","ask_amount","ask_price","bid_price","bid_amount"]
[1610370565785,5.91149,1074.6,1074.2,3.62]
[1610370566583,1.9019,1074.6,1074.2,3.62]
[1610370566784,4.00959,1074.8,1074.3,4.00959]
[1610370567884,4.00959,1074.8,1074.2,3.62]
[1610370568886,4.00959,1074.3,1074.2,3.62]
[1610370569287,2.3606,1074.5,1074.2,3.62]
[1610370570887,4.00959,1074.3,1074.2,3.62]
[1610370574190,2.3606,1074.5,1074.2,3.62]
[1610370574392,73.8306,1074.9,1074.2,3.62]
[1610370574791,73.8306,1074.9,1074.5,4.00959]
[1610370575192,73.8306,1074.9,1074.2,3.62]
[1610370576794,4.00959,1074.7,1074.2,7.62959]
[1610370577195,72.0733,1074.9,1074.2,7.62959]
[1610370577396,72.0733,1074.9,1074.2,9.15069]
[1610370578195,72.4609,1075.4,1074.2,9.15069]
[1610370578396,6.08,1077.0,1074.2,9.15069]
[1610370578597,6.2593,1076.9,1074.2,9.15069]
[1610370578797,4.00959,1076.6,1075.9,4.00959]
[1610370578997,2.0948,1076.6,1075.9,4.00959]
[1610370580201,2.2703,1076.9,1075.9,4.00959]
[1610370580402,2.2703,1076.9,1076.0,30.0]
[1610370580601,6.0614,1078.3,1076.0,30.0]
[1610370580802,6.0614,1078.3,1077.5,4.00959]
[1610370581003,6.0614,1078.3,1076.6,2.444]
[1610370581215,8.0801,1078.3,1076.6,2.444]
[1610370582803,4.00959,1077.6,1077.3,4.00959]
[1610370583204,4.00959,1077.6,1076.6,2.444]
[1610370584107,5.66739,1077.6,1076.6,2.444]
[1610370584908,4.00959,1077.0,1076.6,2.444]
[1610370586010,4.00959,1077.0,1075.9,2.3495]
[1610370586210,4.00959,1077.0,1075.0,6.07124417]
[1610370586613,4.00959,1077.0,1075.0,5.7882]
[1610370586813,4.00959,1076.3,1076.2,4.00959]
[1610370587012,4.00959,1076.3,1075.0,5.7882]
[1610370587418,4.00959,1076.3,1074.9,5.0]
[1610370588814,4.00959,1075.5,1075.4,4.00959]
[1610370589014,4.00959,1075.5,1074.9,5.0]
[1610370589822,2.3027,1076.0,1074.9,5.0]
[1610370590015,2.3027,1076.0,1074.9,7.1419]
[1610370591017,4.00959,1075.0,1074.9,7.1419]
[1610370592219,4.00959,1075.0,1074.9,5.0]
[1610370594021,5.74759,1075.0,1074.9,5.0]
[1610370596126,1.738,1075.0,1074.9,5.0]
[1610370596525,2.1114,1075.3,1074.9,5.0]
[1610370596925,4.00959,1075.2,1075.1,4.00959]
[1610370597424,4.00959,1075.2,1074.9,5.0]
[1610370597627,2.1114,1075.3,1074.9,5.0]
[1610370597824,71.5522,1075.5,1074.9,5.0]
[1610370598928,71.5522,1075.5,1075.0,4.00959]
[1610370600933,71.5522,1075.5,1075.4,4.00959]
[1610370601131,3.405,1077.4,1075.4,34.00959]
[1610370601331,3.405,1077.4,1075.4,36.09599]
[1610370601730,3.405,1077.4,1075.4,6.09599]
[1610370602740,3.405,1077.4,1075.4,2.0864]
[1610370602936,4.00959,1075.7,1075.5,4.00959]
[1610370603343,1.951,1076.7,1075.4,2.0864]
[1610370605033,4.00959,1075.7,1075.4,6.09599]
[1610370605235,4.00959,1075.7,1075.4,2.0864]
[1610370606136,4.00959,1075.7,1074.9,5.0]
[1610370606936,4.00959,1075.0,1074.9,5.0]
[1610370612142,4.00959,1075.0,1074.9,3.1074]
[1610370612343,4.00959,1075.0,1074.9,1.2674]
[1610370612545,4.00959,1075.0,1072.8,9.32487877]
[1610370612747,9.86459,1075.0,1072.8,9.32487877]
[1610370612945,4.00959,1072.9,1072.8,9.32487877]
[1610370615544,5.93059,1072.9,1072.8,9.32487877]
[1610370615745,5.93059,1072.9,1072.8,7.21137877]
[1610370616146,5.93059,1072.9,1072.8,5.36127877]
[1610370616347,5.93059,1072.9,1072.8,0.75797877]
[1610370616545,5.93059,1072.9,1072.8,7.877e-05]
[1610370617147,7.78509,1072.9,1072.8,7.877e-05]
[1610370620348,7.78509,1072.9,1070.6,0.28432891]
[1610370620549,7.78509,1072.9,1070.5,0.68466066]
[1610370621148,4.00959,1071.4,1071.2,4.00959]
[1610370621349,4.00959,1071.4,1070.5,0.68466066]
[1610370621749,4.00959,1071.4,1070.6,1.84371047]
[1610370622150,4.00959,1071.4,1070.6,4.31951047]
[1610370622349,1.9819,1071.6,1070.6,4.31951047]
[1610370622950,1.9819,1071.6,1070.6,2.4758]
[1610370623152,1.9819,1071.6,1070.9,4.00959]
[1610370623752,1.8408,1072.6,1070.9,5.58979]
[1610370623954,3.7755,1072.9,1070.9,5.58979]
[1610370624153,1.921,1072.9,1070.9,5.58979]
[1610370624352,12.3095,1073.1,1070.9,5.58979]
[1610370624755,12.3095,1073.1,1070.9,5.87412727]
[1610370625055,4.00959,1071.6,1070.9,1.86453727]
[1610370625658,4.00959,1071.6,1071.0,0.28431073]
[1610370626056,4.00959,1071.6,1070.9,1.86452998]
[1610370626259,4.00959,1071.6,1070.9,1.5802]
[1610370627059,4.00959,1071.1,1070.9,1.5802]
[1610370628667,4.00959,1071.1,1071.0,1.843257]
[1610370629975,4.00959,1071.1,1070.7,65.195]
[1610370631175,4.00959,1071.1,1070.7,69.20459]
[1610370631374,4.00959,1071.1,1070.8,1.76750168]
[1610370632474,1.7197,1072.0,1070.8,1.76750168]
[1610370632675,5.85,1072.2,1070.8,1.76750168]
[1610370632878,2.0799,1072.3,1070.8,1.76750168]
[1610370633073,4.00959,1072.4,1072.0,4.00959]
[1610370633676,6.2602,1073.1,1072.0,4.00959]
[1610370634077,6.2602,1073.1,1071.6,2.3696]
[1610370634078,6.2602,1073.1,1072.4,0.5231]
[1610370634275,6.2602,1073.1,1072.4,5.0]
[1610370634676,154.8668,1072.6,1072.4,5.0]
[1610370634875,156.5706,1072.6,1072.4,5.0]
[1610370637079,4.00959,1072.5,1072.4,5.0]
[1610370638882,4.00959,1072.5,1071.6,2.3696]
[1610370639083,4.00959,1071.7,1071.5,4.00959]
[1610370639482,154.8668,1072.6,1072.5,0.99041]
[1610370641088,158.87639,1072.6,1072.5,0.99041]
[1610370642087,160.72439,1072.6,1072.5,0.99041]
[1610370643186,160.72439,1072.6,1072.5,0.52181]
[1610370643787,160.72439,1072.6,1072.5,0.05031]
[1610370643988,160.72439,1072.6,1070.9,0.2352]
[1610370643989,66.7672,1072.5,1070.9,0.2352]
[1610370644388,75.7672,1072.5,1070.9,0.2352]
[1610370645188,4.00959,1071.0,1070.9,0.2352]
[1610370648996,4.00959,1071.0,1069.6,0.28446684]
[1610370649197,4.00959,1069.7,1069.6,0.28446684]
[1610370649397,4.00959,1069.7,1069.1,0.28456449]
[1610370649596,4.00959,1069.7,1068.9,0.28465305]
[1610370649996,4.00959,1069.7,1068.6,0.28468845]
[1610370650796,4.00959,1069.7,1068.7,1.69642398]
[1610370650998,4.00959,1069.7,1068.7,4.08582398]
[1610370651198,4.00959,1069.1,1068.8,4.00959]
[1610370651998,1.5421,1069.6,1068.8,4.00959]
[1610370652199,1.5421,1069.6,1068.9,1.69671566]
[1610370653201,1.8489,1069.9,1069.5,4.00959]
[1610370653602,1.9306,1070.2,1069.5,4.00959]
[1610370654404,70.0417,1071.0,1069.5,4.00959]
[1610370655205,70.0417,1071.0,1070.0,4.00959]
[1610370655804,71.8838,1071.0,1069.4,2.42391998]
[1610370656003,73.9727,1071.0,1069.4,2.42391998]
[1610370656404,72.1306,1071.0,1069.4,2.1394]
[1610370657104,4.00959,1069.5,1069.4,2.1394]
[1610370657504,4.00959,1069.5,1069.1,2.015]
[1610370658504,1.6836,1070.1,1069.0,59.4802]
[1610370658705,1.6836,1070.1,1069.0,61.0659]
[1610370658905,1.6836,1070.1,1069.2,1.66581094]
[1610370659104,1.6836,1070.1,1069.8,4.00959]
[1610370659604,72.1306,1071.0,1069.8,4.00959]
[1610370659803,72.1306,1071.0,1069.3,2.1597]
[1610370660804,73.9873,1071.0,1069.3,2.1597]
[1610370661204,4.00959,1069.4,1069.3,2.1597]
[1610370661404,4.00959,1069.4,1069.0,61.0659]
[1610370662806,4.00959,1069.4,1068.7,2.3894]
[1610370663006,6.25569,1069.4,1069.1,1.66702374]
[1610370663208,4.00959,1069.2,1069.1,1.66702374]
[1610370663609,4.00959,1069.2,1069.1,0.73212374]
[1610370664408,4.00959,1069.2,1068.8,1.5651404]
[1610370665309,4.00959,1068.9,1068.8,1.5651404]
[1610370665912,4.00959,1068.9,1068.3,1.56561328]
[1610370667115,4.00959,1068.9,1068.3,1.46111328]
[1610370667317,1.8285,1069.1,1067.9,1.42488623]
[1610370667318,4.00959,1068.4,1067.9,1.42488623]
[1610370668713,4.00959,1068.4,1067.7,1.42491478]
[1610370669414,4.00959,1067.8,1067.7,1.42491478]
[1610370670616,1.5898,1068.8,1067.7,1.42491478]
[1610370670815,1.5898,1068.8,1067.7,3.61431478]
[1610370671415,4.00959,1067.8,1067.7,3.61431478]
[1610370672015,4.00959,1067.8,1067.7,2.1894]
[1610370675819,4.00959,1067.8,1067.2,4.00959]
[1610370676923,4.00959,1067.8,1066.9,0.28525358]
[1610370677123,4.00959,1067.8,1066.8,0.28530809]
[1610370677324,4.00959,1067.0,1066.8,4.29489809]
[1610370677723,4.00959,1067.0,1066.8,4.00959]
[1610370677924,4.00959,1067.0,1066.7,0.28533585]
[1610370678726,4.00959,1067.0,1066.6,0.28534304]
[1610370678925,2.0341,1067.7,1066.6,0.28534304]
[1610370679330,4.00959,1067.1,1066.8,5.43594181]
[1610370680029,4.00959,1067.1,1066.8,1.42635181]
[1610370680841,2.0341,1067.7,1066.7,1.7117384]
[1610370681048,2.0341,1067.7,1066.7,1.42639817]
[1610370681237,2.409,1068.0,1066.7,1.42639817]
[1610370681431,4.00959,1067.6,1067.4,4.00959]
[1610370682032,4.00959,1067.6,1066.8,0.28528546]
[1610370683033,4.00959,1067.6,1066.7,0.28535052]
[1610370683433,4.00959,1067.6,1066.9,1.42637243]
[1610370683634,4.00959,1067.6,1066.9,3.07187243]
[1610370685136,4.00959,1067.6,1067.0,1.42662274]
[1610370685534,4.00959,1067.2,1067.1,4.00959]
[1610370686338,2.0284,1067.9,1067.1,4.00959]
[1610370686538,2.0284,1067.9,1067.1,5.43607356]
[1610370686939,2.3166,1068.2,1067.1,5.43607356]
[1610370687139,57.921,1067.4,1067.1,5.43607356]
[1610370687340,2.1531,1068.5,1067.1,5.43607356]
[1610370687537,6.166,1069.2,1067.1,1.42648356]
[1610370687741,30.0,1071.3,1067.1,1.42648356]
[1610370687940,30.0,1071.3,1067.2,1.42614345]
[1610370688138,10.875,1070.0,1067.2,3.88684345]
[1610370689440,4.63607528,1069.9,1067.3,1.42624995]
[1610370689641,15.61117528,1069.9,1067.3,1.42624995]
[1610370690244,6.61117528,1069.9,1067.3,1.42624995]
[1610370690843,4.63596778,1069.8,1067.3,1.42624995]
[1610370691443,4.00959,1068.2,1067.9,4.00959]
[1610370691843,2.0372,1068.7,1067.9,4.00959]
[1610370692043,2.0372,1068.7,1067.9,6.17529]
[1610370692645,2.0372,1068.7,1068.0,1.42551739]
[1610370692844,1.9751,1069.9,1068.0,1.42551739]
[1610370693449,4.00959,1068.9,1068.8,4.00959]
[1610370693644,1.9751,1069.9,1068.8,4.00959]
[1610370693645,2.2795,1069.2,1068.8,4.00959]
[1610370694647,4.6345439,1069.8,1068.8,4.00959]
[1610370695450,4.00959,1069.7,1069.5,4.00959]
[1610370695850,1.9448,1070.2,1069.5,4.00959]
[1610370696449,1.9448,1070.2,1069.5,6.32689]
[1610370696650,3.405,1071.4,1069.5,6.32689]
[1610370697253,1.8548,1071.5,1069.5,6.32689]
[1610370697454,1.8548,1071.5,1070.6,4.00959]
[1610370697656,1.8548,1071.5,1071.4,0.826]
[1610370697854,1.865,1072.0,1071.4,5.0]
[1610370698058,1.8822,1072.3,1071.4,5.0]
[1610370698255,5.2921,1072.8,1071.4,5.0]
[1610370698854,1.8871,1072.8,1070.8,2.2877]
[1610370699057,4.2911,1072.8,1070.8,2.2877]
[1610370699255,6.811,1073.6,1072.8,0.7089]
[1610370699456,4.00959,1072.9,1070.9,4.00959]
[1610370699659,4.62833543,1072.7,1070.9,4.00959]
[1610370700656,6.29053543,1072.7,1070.9,4.00959]
[1610370700855,1.6622,1072.7,1070.9,4.00959]
[1610370701457,4.00959,1071.0,1070.9,4.00959]
[1610370701656,4.00959,1071.0,1070.8,2.2877]
[1610370702058,4.00959,1071.0,1070.5,1.9854]
[1610370702258,4.00959,1071.0,1070.4,75.7792]
[1610370703458,4.00959,1070.5,1070.4,79.78879]
[1610370703658,4.00959,1070.5,1070.4,75.7792]
[1610370703861,4.00959,1070.5,1069.4,5.9767]
[1610370704660,4.00959,1070.5,1069.2,0.4]
[1610370705462,4.00959,1069.5,1069.3,4.00959]
[1610370706262,4.00959,1069.5,1069.2,0.4]
[1610370707463,4.00959,1069.3,1069.2,0.4]
[1610370708668,6.10759,1069.3,1069.2,0.4]
[1610370709466,2.098,1069.3,1069.2,4.40959]
[1610370709669,4.00959,1069.5,1069.2,4.40959]
[1610370709868,4.00959,1069.5,1069.2,0.4]
[1610370711085,1.8857,1069.6,1069.2,0.4]
[1610370711468,4.00959,1069.9,1069.5,4.00959]
[1610370711869,2.1742,1070.1,1069.5,4.00959]
[1610370712069,1.6388,1070.4,1069.5,4.00959]
[1610370712269,3.405,1071.3,1069.5,4.00959]
[1610370712469,3.405,1071.3,1069.5,34.00959]
[1610370712669,130.7708,1071.8,1069.5,34.00959]
[1610370712870,6.0667,1072.2,1069.5,34.00959]
[1610370713470,4.00959,1071.3,1071.1,4.00959]
[1610370713672,5.94559,1071.3,1071.1,4.00959]
[1610370714271,0.94559,1071.3,1071.1,4.00959]
[1610370714472,0.94559,1071.3,1069.6,30.0]
[1610370714671,2.3427,1072.0,1069.7,30.0]
[1610370714873,2.3427,1072.0,1069.7,1.6857]
[1610370715475,67.6527,1071.9,1070.8,4.00959]
[1610370716076,72.51737635,1071.9,1070.8,4.00959]
[1610370717376,4.8648585,1071.8,1070.8,4.00959]
[1610370717580,4.00959,1070.9,1070.8,4.00959]
[1610370717781,4.00959,1070.9,1069.7,1.6857]
[1610370717980,4.00959,1070.9,1070.1,57.0172]
[1610370718181,4.00959,1070.9,1070.1,59.2025]
[1610370719381,4.00959,1070.9,1070.1,57.0172]
[1610370719581,4.00959,1070.9,1070.7,4.00959]
[1610370719983,2.3945,1071.3,1070.7,4.00959]
[1610370720585,2.3945,1071.3,1070.9,5.0]
[1610370721483,4.00959,1071.2,1071.0,4.00959]
[1610370722085,4.00959,1071.2,1070.9,5.0]
[1610370723686,4.00959,1071.0,1070.9,5.0]
[1610370723888,6.28579,1071.0,1070.9,5.0]
[1610370725987,11.15219742,1071.0,1070.9,5.0]
[1610370727688,11.15219742,1071.0,1070.9,3.1181]
[1610370727887,11.15219742,1071.0,1070.9,0.7865]
[1610370728090,11.15219742,1071.0,1068.3,0.28487344]
[1610370728289,11.15219742,1071.0,1068.4,6.0473]
[1610370728488,60.1821,1070.2,1068.6,55.6557]
[1610370728689,62.1295,1070.2,1068.6,55.6557]
[1610370729689,4.00959,1068.7,1068.6,55.6557]
[1610370733088,1.507,1068.9,1068.2,4.00959]
[1610370733489,1.9351,1069.2,1068.2,4.00959]
[1610370733689,4.00959,1068.9,1068.1,2.3814]
[1610370734590,6.08909,1068.9,1068.1,2.3814]
[1610370735592,6.08909,1068.9,1068.7,4.00959]
[1610370736693,6.08909,1068.9,1068.1,2.3814]
[1610370737093,1.08909,1068.9,1068.1,2.3814]
[1610370737493,1.9351,1069.2,1068.1,2.3814]
[1610370737695,4.00959,1068.5,1068.2,4.00959]
[1610370738294,4.00959,1068.5,1068.1,61.7296]
[1610370739695,4.00959,1068.2,1068.1,61.7296]
[1610370744897,4.00959,1068.2,1066.3,6.1698116]
[1610370745100,4.00959,1068.2,1066.3,5.8844]
[1610370745498,53.2329,1068.0,1066.3,5.8844]
[1610370745699,55.2467,1068.0,1067.0,4.00959]
[1610370746299,55.2467,1068.0,1066.8,1.5052]
[1610370747702,4.00959,1067.0,1066.8,5.51479]
[1610370748101,55.2467,1068.0,1066.8,5.51479]
[1610370749500,55.2467,1068.0,1066.8,1.5052]
[1610370749501,57.1185,1068.0,1066.8,1.5052]
[1610370749702,4.00959,1066.9,1066.8,1.5052]
[1610370749904,4.00959,1066.9,1066.5,4.00959]
[1610370751405,4.00959,1066.9,1066.0,5.9155]
[1610370751604,4.00959,1066.9,1065.9,56.0983]
[1610370751805,4.00959,1066.2,1065.9,56.0983]
[1610370752207,4.00959,1066.2,1066.1,1.42783857]
[1610370753712,4.00959,1066.2,1066.0,4.00959]
[1610370753912,4.00959,1066.2,1065.9,56.0983]
[1610370755814,4.00959,1066.2,1066.0,4.00959]
[1610370756014,4.00959,1066.2,1065.9,56.0983]
[1610370756817,4.00959,1066.2,1065.7,1.5354]
[1610370757819,4.00959,1066.0,1065.9,4.00959]
[1610370758017,1.9265,1066.7,1065.9,4.00959]
[1610370759020,67.9783,1066.8,1065.9,4.00959]
[1610370759818,67.9783,1066.8,1066.7,4.00959]
[1610370760020,1.9742,1067.0,1066.7,4.00959]
[1610370760219,1.7033,1067.3,1066.7,4.00959]
[1610370760420,1.6017,1067.6,1066.7,4.00959]
[1610370760619,1.8874,1068.7,1066.7,6.29769]
[1610370761621,3.405,1069.9,1066.7,6.29769]
[1610370761821,4.00959,1068.1,1067.6,4.00959]
[1610370762421,1.8564,1068.2,1067.6,4.00959]
[1610370763422,1.8877,1069.7,1067.6,6.47489]
[1610370763823,4.00959,1068.8,1068.2,4.00959]
[1610370765839,4.00959,1068.8,1068.5,4.00959]
[1610370766029,4.00959,1068.8,1068.0,2.4531]
[1610370767451,54.9816,1069.2,1068.0,2.4531]
[1610370767635,1.8127,1069.0,1068.0,32.4531]
[1610370767840,1.8127,1069.0,1068.9,4.00959]
[1610370768834,54.9816,1069.2,1068.9,4.00959]
[1610370769830,54.9816,1069.2,1069.1,4.00959]
[1610370770231,54.9816,1069.2,1069.1,6.42929]
[1610370771034,21.61790565,1072.4,1069.1,6.42929]
[1610370771232,6.0955,1071.3,1069.1,6.42929]
[1610370771832,6.0955,1071.3,1070.7,4.00959]
[1610370773832,6.0955,1071.3,1070.0,1.5307]
[1610370774233,8.3335,1071.3,1070.0,1.5307]
[1610370774633,4.00959,1071.8,1070.0,1.5307]
[1610370774833,1.8595,1072.6,1070.0,1.5307]
[1610370775034,3.405,1073.0,1070.0,1.5307]
[1610370775633,1.8833,1073.5,1070.0,3.411]
[1610370775835,4.00959,1073.2,1072.9,4.00959]
[1610370776035,5.61439,1073.2,1072.9,4.00959]
[1610370776834,1.6048,1073.2,1072.9,4.00959]
[1610370777436,1.6048,1073.2,1071.5,1.8944]
[1610370777633,1.6048,1073.2,1071.0,75.1891]
[1610370777839,4.00959,1072.3,1072.2,4.00959]
[1610370778033,2.3344,1072.5,1071.0,73.3154]
[1610370778233,2.3344,1072.5,1071.0,75.6169]
[1610370779234,2.3344,1072.5,1071.0,105.6169]
[1610370779834,2.3344,1072.5,1072.4,4.00959]
[1610370780834,1.6048,1073.2,1072.4,34.00959]
[1610370781035,72.4784,1074.4,1072.4,34.00959]
[1610370781435,72.4784,1074.4,1072.4,4.00959]
[1610370781837,4.00959,1074.2,1074.1,4.00959]
[1610370782035,1.576,1074.2,1074.1,4.00959]
[1610370783238,72.4784,1074.4,1074.1,4.00959]
[1610370783838,72.4784,1074.4,1074.3,4.00959]
[1610370784639,56.4899,1075.2,1074.3,4.00959]
[1610370784841,21.76662378,1076.6,1074.3,4.00959]
[1610370785040,21.78067931,1076.7,1074.5,52.4409]
[1610370785439,1.8728,1076.7,1074.5,52.4409]
[1610370785840,4.00959,1074.7,1074.5,56.45049]
[1610370786240,2.1556,1074.9,1074.5,56.45049]
[1610370787340,2.1556,1074.9,1074.5,4.00959]
[1610370787841,2.1556,1074.9,1074.8,4.00959]
[1610370791147,4.00959,1075.2,1074.8,4.00959]
[1610370791345,58.5495,1075.7,1074.8,4.00959]
[1610370791547,58.5495,1075.7,1073.7,64.3796]
[1610370791767,58.5495,1075.7,1073.8,2.0114]
[1610370791962,60.5818,1075.7,1073.8,2.0114]
[1610370792849,4.75349913,1075.6,1073.7,64.3796]
[1610370793849,4.00959,1073.8,1073.2,4.00959]
[1610370794051,5.79399,1073.8,1073.2,4.00959]
[1610370795053,5.79399,1073.8,1072.4,59.2633]
[1610370795854,4.00959,1072.7,1072.5,4.00959]
[1610370796462,2.2511,1072.9,1072.5,4.00959]
[1610370797956,2.2511,1072.9,1072.8,4.00959]
[1610370798157,2.2511,1072.9,1072.4,59.2633]
[1610370798756,2.2511,1072.9,1071.8,2.4695]
[1610370799159,2.2511,1072.9,1070.8,0.28421149]
[1610370799361,2.2511,1072.9,1070.3,0.28429867]
[1610370799559,4.75847887,1072.8,1070.0,0.28438156]
[1610370799957,4.00959,1071.3,1070.9,4.00959]
[1610370800158,6.45609,1071.3,1069.8,0.28444255]
[1610370800359,6.45609,1071.3,1069.6,0.28450632]
[1610370800559,6.45609,1071.3,1069.4,0.28457283]
[1610370800960,6.45609,1071.3,1069.3,0.284598]
[1610370801861,6.45609,1071.3,1069.2,0.56919601]
[1610370801862,6.45609,1071.3,1069.2,0.28463877]
[1610370802061,4.00959,1070.2,1069.8,4.00959]
[1610370802862,1.5583,1070.3,1069.8,4.00959]
[1610370804065,1.5583,1070.3,1070.0,4.00959]
[1610370804865,1.7583,1070.6,1070.0,4.00959]
[1610370806067,4.00959,1070.5,1070.0,4.00959]
[1610370807271,4.00959,1070.5,1069.2,58.0862]
[1610370807676,4.00959,1070.5,1069.2,56.5836]
[1610370808068,4.00959,1069.3,1068.8,5.0]
[1610370808769,1.6551,1069.6,1068.8,5.0]
[1610370809971,4.00959,1068.9,1068.8,9.00959]
[1610370810170,1.6581,1069.2,1068.8,9.00959]
[1610370810970,69.8339,1070.3,1068.8,9.00959]
[1610370811887,69.8339,1070.3,1068.8,10.85729]
[1610370812080,69.8339,1070.3,1070.2,4.00959]
[1610370813273,6.1652,1070.5,1069.9,1.9185]
[1610370813673,6.1652,1070.5,1069.3,1.8809]
[1610370813872,8.2749,1070.5,1069.3,1.8809]
[1610370814074,4.00959,1069.6,1069.5,4.00959]
[1610370814673,2.0012,1070.0,1069.5,4.00959]
[1610370815974,2.0012,1070.0,1069.9,4.00959]
[1610370816582,2.0012,1070.0,1068.8,5.0]
[1610370818075,2.0012,1070.0,1069.9,4.00959]
[1610370818275,2.0012,1070.0,1068.8,5.0]
[1610370818479,3.8595,1070.0,1068.8,5.0]
[1610370819076,3.8595,1070.0,1068.6,77.7249]
[1610370819276,1.892,1070.4,1070.0,1.1405]
[1610370819478,2.1097,1070.5,1068.6,77.7249]
[1610370819677,5.8607,1070.6,1068.6,77.7249]
[1610370820076,4.00959,1069.3,1068.6,77.7249]
[1610370820276,6.44829,1069.3,1068.1,2.4425]
[1610370821078,6.44829,1069.3,1067.8,1.7739]
[1610370822080,4.00959,1068.3,1067.9,4.00959]
[1610370822278,4.00959,1068.3,1067.8,1.7739]
[1610370822879,4.00959,1068.3,1067.8,0.6872]
[1610370823078,4.00959,1068.3,1066.9,0.28530992]
[1610370823278,4.00959,1068.3,1066.8,0.28533177]
[1610370823679,4.00959,1068.3,1066.7,0.28539567]
[1610370823881,4.00959,1068.3,1066.5,0.28542586]
[1610370824080,4.00959,1067.2,1066.5,0.28542586]
[1610370824279,5.85199,1067.2,1066.4,0.2854489]
[1610370824479,1.8424,1067.2,1066.4,0.2854489]
[1610370824683,1.8424,1067.2,1066.3,0.28546231]
[1610370825081,1.8424,1067.2,1066.5,1.42733458]
[1610370825281,6.0382,1068.3,1066.5,1.42733458]
[1610370825483,6.0382,1068.3,1066.6,0.28540003]
[1610370825681,6.0382,1068.3,1067.2,5.0]
[1610370825882,6.0382,1068.3,1067.2,7.2311]
[1610370826282,6.0382,1068.3,1067.2,7.51637164]
[1610370826883,6.0382,1068.3,1067.2,7.2311]
[1610370828084,6.0382,1068.3,1068.2,4.00959]
[1610370830584,6.0382,1068.3,1067.8,2.414]
[1610370830985,6.0382,1068.3,1067.2,7.2311]
[1610370831185,8.3698,1068.3,1067.2,7.2311]
[1610370833889,8.3698,1068.3,1067.2,5.0]
[1610370834088,4.00959,1067.3,1067.2,5.0]
[1610370834689,2.451,1067.6,1067.2,5.0]
[1610370835291,8.3698,1068.3,1067.2,5.0]
[1610370835492,78.1983,1067.8,1067.2,5.0]
[1610370835691,8.3698,1068.3,1067.2,5.0]
[1610370836091,4.00959,1067.9,1067.2,9.00959]
[1610370837693,2.454,1068.0,1067.2,9.00959]
[1610370838093,8.3698,1068.3,1067.2,5.0]
[1610370839794,6.0382,1068.3,1067.2,5.0]
[1610370840196,4.00959,1068.2,1068.0,4.00959]
[1610370840795,8.2423,1068.3,1068.0,4.00959]
[1610370841396,8.2423,1068.3,1068.0,6.38039]
[1610370841597,6.0382,1068.3,1068.0,6.38039]
[1610370842999,6.0382,1068.3,1068.0,2.3708]
[1610370843199,6.0382,1068.3,1067.5,2.4144]
[1610370843799,6.0382,1068.3,1067.2,5.0]
[1610370844201,4.00959,1067.3,1067.2,5.0]
[1610370844402,6.0382,1068.3,1067.2,5.0]
[1610370845609,6.0382,1068.3,1065.7,0.85695095]
[1610370845610,1.8514,1068.3,1066.1,2.3602]
[1610370846014,1.8514,1068.3,1066.1,1.9342]
[1610370846209,4.00959,1066.2,1066.1,1.9342]
[1610370846402,4.00959,1066.2,1065.7,4.00959]
[1610370846803,4.00959,1066.2,1065.0,0.28587747]
[1610370847403,4.00959,1066.2,1064.9,0.28591248]
[1610370847605,71.9545,1066.0,1064.7,0.28595185]
[1610370847805,73.6279,1066.0,1064.7,0.28595185]
[1610370848007,73.6279,1066.0,1064.5,0.28600537]
[1610370848206,73.6279,1066.0,1064.4,4.29561595]
[1610370848605,73.6279,1066.0,1064.4,4.00959]
[1610370848807,75.53,1066.0,1064.5,1.43019438]
[1610370849007,73.6279,1066.0,1064.5,2.96279438]
[1610370849410,73.6279,1066.0,1064.5,3.24880722]
[1610370850008,73.6279,1066.0,1064.5,2.96279438]
[1610370850209,73.6279,1066.0,1064.9,4.00959]
[1610370850810,1.6734,1066.0,1064.9,4.00959]
[1610370851411,1.6734,1066.0,1064.9,5.76719]
[1610370852213,4.00959,1065.4,1064.9,5.76719]
[1610370852413,6.40689,1065.4,1064.9,4.00959]
[1610370852613,6.40689,1065.4,1064.5,1.5326]
[1610370853415,6.40689,1065.4,1064.0,0.28613021]
[1610370853615,6.40689,1065.4,1063.8,0.2861645]
[1610370854217,4.00959,1065.1,1064.6,4.00959]
[1610370854417,6.42829,1065.1,1063.8,0.2861645]
[1610370854918,6.42829,1065.1,1063.6,0.28619793]
[1610370855317,2.4187,1065.1,1063.6,0.28619793]
[1610370855517,2.4187,1065.1,1063.9,0.28619903]
[1610370855720,2.4187,1065.1,1063.9,2.76999903]
[1610370855919,2.3973,1065.4,1064.0,0.28615246]
[1610370856117,6.40689,1065.4,1064.5,4.00959]
[1610370856317,6.40689,1065.4,1064.5,5.97599]
[1610370856717,6.40689,1065.4,1064.5,1.9664]
[1610370857317,6.40689,1065.4,1063.9,2.4838]
[1610370858121,2.3973,1065.4,1064.1,4.00959]
[1610370858325,1.6734,1066.0,1064.1,4.00959]
[1610370858522,1.8733,1066.1,1064.1,4.00959]
[1610370858738,6.176,1066.2,1064.1,4.00959]
[1610370860220,4.00959,1064.2,1064.1,4.00959]
[1610370860622,4.00959,1064.2,1063.9,2.4838]
[1610370860821,4.00959,1064.2,1063.5,0.28621648]
[1610370861021,4.00959,1064.2,1063.4,0.28621981]
[1610370861621,5.58339,1064.2,1064.0,1.43087147]
[1610370862022,1.5738,1064.2,1064.0,1.43087147]
[1610370862723,2.4769,1064.6,1064.0,1.43087147]
[1610370862923,2.4769,1064.6,1064.1,1.43111772]